Workbook

Sheet Divpadsmit mēnešu naudas plūsma
A2: Divpadsmit mēnešu naudas plūsma | O2: Finanšu gada sākums: | P2: 2013-07-01
A3: Uzņēmuma nosaukums
A4: Adrese, pilsēta, novads, pasta indekss
A5: Tālrunis, e-pasta adrese, vietne
B7: Sākums | C7: =Finanšugads -> 2013-07-01 | D7: =DATE(YEAR(C7),MONTH(C7)+1,1) -> 2013-08-01 | E7: =DATE(YEAR(D7),MONTH(D7)+1,1) -> 2013-09-01 | F7: 2013-10-01 | G7: 2013-11-01 | H7: 2013-12-01 | I7: 2014-01-01 | J7: 2014-02-01 | K7: 2014-03-01 | L7: 2014-04-01 | M7: 2014-05-01 | N7: 2014-06-01 | O7: Vidēji mēnesī | P7: Apskats
A8: Naudas kopsavilkums
A9: Rīcībā esošā skaidrā nauda (mēneša sākums) | B9: 55,000 | C9: =IF(Ieņēmumi[[#Totals],[3. kolonna]]+Izdevumi[[#Totals],[3. kolonna]]=0,"",B11) -> 67,593 | D9: =IF(Ieņēmumi[[#Totals],[4. kolonna]]+Izdevumi[[#Totals],[4. kolonna]]=0,"",C11) -> 54,265 | E9: =IF(Ieņēmumi[[#Totals],[5. kolonna]]+Izdevumi[[#Totals],[5. kolonna]]=0,"",D11) -> 55,739 | F9: =IF(Ieņēmumi[[#Totals],[6. kolonna]]+Izdevumi[[#Totals],[5. kolonna2]]=0,"",E11) -> 69,290 | G9: =IF(Ieņēmumi[[#Totals],[7. kolonna]]+Izdevumi[[#Totals],[7. kolonna]]=0,"",F11) -> 65,618 | H9: =IF(Ieņēmumi[[#Totals],[8. kolonna]]+Izdevumi[[#Totals],[8. kolonna]]=0,"",G11) ->  | I9: =IF(Ieņēmumi[[#Totals],[9. kolonna]]+Izdevumi[[#Totals],[9. kolonna]]=0,"",H11) ->  | J9: =IF(Ieņēmumi[[#Totals],[10. kolonna]]+Izdevumi[[#Totals],[10. kolonna]]=0,"",I11) ->  | K9: =IF(Ieņēmumi[[#Totals],[11. kolonna]]+Izdevumi[[#Totals],[10. kolonna2]]=0,"",J11) ->  | L9: =IF(Ieņēmumi[[#Totals],[12. kolonna]]+Izdevumi[[#Totals],[12. kolonna]]=0,"",K11) ->  | M9: =IF(Ieņēmumi[[#Totals],[13. kolonna]]+Izdevumi[[#Totals],[13. kolonna]]=0,"",L11) ->  | N9: =IF(Ieņēmumi[[#Totals],[14. kolonna]]+Izdevumi[[#Totals],[14. kolonna]]=0,"",M11) ->  | O9: =IFERROR(AVERAGE(Kopsavilkums[[#This Row],[2. kolonna]:[14. kolonna]]),"") -> 62,501
A10: Pieejamā skaidrā nauda (rīcībā esošā + čeki, pirms naudas iekasēšanas) | B10: =SUM(B9,Ieņēmumi[[#Totals],[2. kolonna]]) -> 67,593 | C10: =IF(C9="","",SUM(C9,Ieņēmumi[[#Totals],[3. kolonna]])) -> 76,065 | D10: =IF(D9="","",SUM(D9,Ieņēmumi[[#Totals],[4. kolonna]])) -> 83,301 | E10: =IF(E9="","",SUM(E9,Ieņēmumi[[#Totals],[5. kolonna]])) -> 91,032 | F10: =IF(F9="","",SUM(F9,Ieņēmumi[[#Totals],[6. kolonna]])) -> 89,662 | G10: =IF(G9="","",SUM(G9,Ieņēmumi[[#Totals],[7. kolonna]])) -> 76,200 | H10: =IF(H9="","",SUM(H9,Ieņēmumi[[#Totals],[8. kolonna]])) ->  | I10: =IF(I9="","",SUM(I9,Ieņēmumi[[#Totals],[9. kolonna]])) ->  | J10: =IF(J9="","",SUM(J9,Ieņēmumi[[#Totals],[10. kolonna]])) ->  | K10: =IF(K9="","",SUM(K9,Ieņēmumi[[#Totals],[11. kolonna]])) ->  | L10: =IF(L9="","",SUM(L9,Ieņēmumi[[#Totals],[12. kolonna]])) ->  | M10: =IF(M9="","",SUM(M9,Ieņēmumi[[#Totals],[13. kolonna]])) ->  | N10: =IF(N9="","",SUM(N9,Ieņēmumi[[#Totals],[14. kolonna]])) ->  | O10: =IFERROR(AVERAGE(Kopsavilkums[[#This Row],[2. kolonna]:[14. kolonna]]),"") -> 83,252
A11: Skaidras naudas pozīcija (mēneša beigas) | B11: =(B10-Izdevumi[[#Totals],[2. kolonna]]) -> 67,593 | C11: =IFERROR(C10-Izdevumi[[#Totals],[3. kolonna]],"") -> 54,265 | D11: =IFERROR(D10-Izdevumi[[#Totals],[4. kolonna]],"") -> 55,739 | E11: =IFERROR(E10-Izdevumi[[#Totals],[5. kolonna]],"") -> 69,290 | F11: =IFERROR(F10-Izdevumi[[#Totals],[5. kolonna2]],"") -> 65,618 | G11: =IFERROR(G10-Izdevumi[[#Totals],[7. kolonna]],"") -> 51,413 | H11: =IFERROR(H10-Izdevumi[[#Totals],[8. kolonna]],"") ->  | I11: =IFERROR(I10-Izdevumi[[#Totals],[9. kolonna]],"") ->  | J11: =IFERROR(J10-Izdevumi[[#Totals],[10. kolonna]],"") ->  | K11: =IFERROR(K10-Izdevumi[[#Totals],[10. kolonna2]],"") ->  | L11: =IFERROR(L10-Izdevumi[[#Totals],[12. kolonna]],"") ->  | M11: =IFERROR(M10-Izdevumi[[#Totals],[13. kolonna]],"") ->  | N11: =IFERROR(N10-Izdevumi[[#Totals],[14. kolonna]],"") ->  | O11: =IFERROR(AVERAGE(Kopsavilkums[[#This Row],[2. kolonna]:[14. kolonna]]),"") -> 59,265
A13: Skaidras naudas ieņēmumi
A14: Nauda par tirdzniecību | B14: 5,616 | C14: 3,889 | D14: 24,411 | E14: 31,642 | F14: 14,647 | G14: 3,034 | O14: =IFERROR(AVERAGE(Ieņēmumi[[#This Row],[3. kolonna]:[14. kolonna]]),"") -> 15,525
A15: No CR kontiem savāktā summa | B15: 4,498 | C15: 3,493 | D15: 1,987 | E15: 1,029 | F15: 2,911 | G15: 4,234 | O15: =IFERROR(AVERAGE(Ieņēmumi[[#This Row],[3. kolonna]:[14. kolonna]]),"") -> 2,731
A16: Aizdevums/citi skaidras naudas ieņēmumi | B16: 2,479 | C16: 1,090 | D16: 2,638 | E16: 2,622 | F16: 2,814 | G16: 3,314 | O16: =IFERROR(AVERAGE(Ieņēmumi[[#This Row],[3. kolonna]:[14. kolonna]]),"") -> 2,496
A17: Skaidras naudas ieņēmumu kopsumma | B17: =SUBTOTAL(109,Ieņēmumi[2. kolonna]) -> 12,593 | C17: =SUBTOTAL(109,Ieņēmumi[3. kolonna]) -> 8,472 | D17: =SUBTOTAL(109,Ieņēmumi[4. kolonna]) -> 29,036 | E17: =SUBTOTAL(109,Ieņēmumi[5. kolonna]) -> 35,293 | F17: =SUBTOTAL(109,Ieņēmumi[6. kolonna]) -> 20,372 | G17: =SUBTOTAL(109,Ieņēmumi[7. kolonna]) -> 10,582 | H17: =SUBTOTAL(109,Ieņēmumi[8. kolonna]) -> 0 | I17: =SUBTOTAL(109,Ieņēmumi[9. kolonna]) -> 0 | J17: =SUBTOTAL(109,Ieņēmumi[10. kolonna]) -> 0 | K17: =SUBTOTAL(109,Ieņēmumi[11. kolonna]) -> 0 | L17: =SUBTOTAL(109,Ieņēmumi[12. kolonna]) -> 0 | M17: =SUBTOTAL(109,Ieņēmumi[13. kolonna]) -> 0 | N17: =SUBTOTAL(109,Ieņēmumi[14. kolonna]) -> 0 | O17: =IFERROR(AVERAGE(Ieņēmumi[[#Totals],[3. kolonna]:[14. kolonna]]),"") -> 8,646
A19: Skaidras naudas izmaksas
A20: Pirkumi (jāprecizē) | C20: 521 | D20: 323 | E20: 274 | F20: 451 | G20: 104 | O20: =IFERROR(AVERAGE(Izdevumi[[#This Row],[3. kolonna]:[14. kolonna]]),"") -> 335
A21: Bruto alga (precīza izņemtā summa) | C21: 10,572 | D21: 14,514 | E21: 10,561 | F21: 13,170 | G21: 12,478 | O21: =IFERROR(AVERAGE(Izdevumi[[#This Row],[3. kolonna]:[14. kolonna]]),"") -> 12,259
A22: Materiāli (biroja un ekspluat.) | C22: 250 | D22: 428 | E22: 165 | F22: 1,168 | G22: 345 | O22: =IFERROR(AVERAGE(Izdevumi[[#This Row],[3. kolonna]:[14. kolonna]]),"") -> 471
A23: Remonts un uzturēšana | C23: 0 | D23: 2,200 | E23: 163 | F23: 67 | G23: 0 | O23: =IFERROR(AVERAGE(Izdevumi[[#This Row],[3. kolonna]:[14. kolonna]]),"") -> 486
A24: Reklamēšana | C24: 1,100 | D24: 625 | E24: 1,356 | F24: 0 | G24: 2,560 | O24: =IFERROR(AVERAGE(Izdevumi[[#This Row],[3. kolonna]:[14. kolonna]]),"") -> 1,128
A25: Īre | C25: 3,500 | D25: 3,500 | E25: 3,500 | F25: 3,500 | G25: 3,500 | O25: =IFERROR(AVERAGE(Izdevumi[[#This Row],[3. kolonna]:[14. kolonna]]),"") -> 3,500
A26: Komunālie maksājumi | C26: 285 | D26: 318 | E26: 151 | F26: 134 | G26: 228 | O26: =IFERROR(AVERAGE(Izdevumi[[#This Row],[3. kolonna]:[14. kolonna]]),"") -> 223
A27: Citi (jāprecizē) | C27: 123 | D27: 234 | E27: 123 | F27: 234 | G27: 123 | O27: =IFERROR(AVERAGE(Izdevumi[[#This Row],[3. kolonna]:[14. kolonna]]),"") -> 167
A28: Aizdevuma pamatsummas maksājums | C28: 4,000 | D28: 4,000 | E28: 4,000 | F28: 4,000 | G28: 4,000 | O28: =IFERROR(AVERAGE(Izdevumi[[#This Row],[3. kolonna]:[14. kolonna]]),"") -> 4,000
A29: Kapitāla iegāde (jāprecizē) | C29: 679 | D29: 700 | E29: 679 | F29: 650 | G29: 679 | O29: =IFERROR(AVERAGE(Izdevumi[[#This Row],[3. kolonna]:[14. kolonna]]),"") -> 677
A30: Citas sākuma izmaksas | C30: 400 | D30: 350 | E30: 400 | F30: 300 | G30: 400 | O30: =IFERROR(AVERAGE(Izdevumi[[#This Row],[3. kolonna]:[14. kolonna]]),"") -> 370
A31: Rezerve un/vai Escrow konts | C31: 300 | D31: 300 | E31: 300 | F31: 300 | G31: 300 | O31: =IFERROR(AVERAGE(Izdevumi[[#This Row],[3. kolonna]:[14. kolonna]]),"") -> 300
A32: Īpašnieka izņemtā summa | C32: 70 | D32: 70 | E32: 70 | F32: 70 | G32: 70 | O32: =IFERROR(AVERAGE(Izdevumi[[#This Row],[3. kolonna]:[14. kolonna]]),"") -> 70
A33: Skaidras naudas izmaksu kopsumma | C33: =SUBTOTAL(109,Izdevumi[3. kolonna]) -> 21,800 | D33: =SUBTOTAL(109,Izdevumi[4. kolonna]) -> 27,562 | E33: =SUBTOTAL(109,Izdevumi[5. kolonna]) -> 21,742 | F33: =SUBTOTAL(109,Izdevumi[5. kolonna2]) -> 24,044 | G33: =SUBTOTAL(109,Izdevumi[7. kolonna]) -> 24,787 | H33: =SUBTOTAL(109,Izdevumi[8. kolonna]) -> 0 | I33: =SUBTOTAL(109,Izdevumi[9. kolonna]) -> 0 | J33: =SUBTOTAL(109,Izdevumi[10. kolonna]) -> 0 | K33: =SUBTOTAL(109,Izdevumi[10. kolonna2]) -> 0 | L33: =SUBTOTAL(109,Izdevumi[12. kolonna]) -> 0 | M33: =SUBTOTAL(109,Izdevumi[13. kolonna]) -> 0 | N33: =SUBTOTAL(109,Izdevumi[14. kolonna]) -> 0 | O33: =IFERROR(AVERAGE(Izdevumi[[#Totals],[3. kolonna]:[14. kolonna]]),"") -> 9,995
A35: Būtiski darba dati (ar naudas plūsmu nesaistīta informācija)
A36: Pārdošanas apjoms (latos) | B36: 2,000 | C36: 2,500 | D36: 2,257 | E36: 2,387 | F36: 2,664 | G36: 2,324 | O36: =IFERROR(AVERAGE(Būtiskidarbadati[[#This Row],[2. kolonna]:[14. kolonna]]),"") -> 2,355
A37: Debitori | B37: 1,500 | C37: 500 | D37: 886 | E37: 1,035 | F37: 1,775 | G37: 839 | O37: =IFERROR(AVERAGE(Būtiskidarbadati[[#This Row],[2. kolonna]:[14. kolonna]]),"") -> 1,089
A38: Sliktie parādi (mēneša beigas) | B38: 300 | C38: 200 | D38: 225 | E38: 269 | F38: 448 | G38: 359 | O38: =IFERROR(AVERAGE(Būtiskidarbadati[[#This Row],[2. kolonna]:[14. kolonna]]),"") -> 300
A39: Rīcībā esošie krājumi (mēneša beigas) | O39: =IFERROR(AVERAGE(Būtiskidarbadati[[#This Row],[2. kolonna]:[14. kolonna]]),"") -> 
A40: Kreditori (mēneša beigas) | O40: =IFERROR(AVERAGE(Būtiskidarbadati[[#This Row],[2. kolonna]:[14. kolonna]]),"") -> 
A41: Nolietojums | O41: =IFERROR(AVERAGE(Būtiskidarbadati[[#This Row],[2. kolonna]:[14. kolonna]]),"") -> 

Sheet Kopsavilkums par naudas plūsmu
J26: Datu punkti: | K26: 5
C27: (Velciet augstāk esošo slīdni, lai mainītu datu kopsummu punktus, kas iekļauti diagrammā.)
